Workbook

Sheet Лист1
A1: Школа | C1: МБОУ "Школа №55" | F1: Утвердил: | G1: должность | H1: директор
A2: Типовое примерное меню приготавливаемых блюд | G2: фамилия | H2: Киркина Е.Г.
A3: Возрастная категория | E3: 7-11 лет | G3: дата | H3: 31 | I3: 8 | J3: 2023
H4: день | I4: месяц | J4: год
A5: Неделя | B5: День недели | C5: Прием пищи | D5: Раздел меню | E5: Блюда | F5: Вес блюда, г | G5: Белки | H5: Жиры | I5: Углеводы | J5: Калорийность | K5: № рецептуры | L5: Цена
A6: 1 | B6: 1 | C6: Завтрак | D6: гор.блюдо | E6: ='[1]1'!D4 -> Биточки рыбные из фарша минтая | F6: ='[1]1'!E4 -> 90 | G6: ='[1]1'!H4 -> 9.8 | H6: ='[1]1'!I4 -> 2.01 | I6: ='[1]1'!J4 -> 10.2 | J6: ='[1]1'!G4 -> 98 | K6: ='[1]1'!C4 -> ТТК 2021 г
E7: ='[1]1'!D5 -> Пюре картофельное | F7: ='[1]1'!E5 -> 155 | G7: ='[1]1'!H5 -> 3.32 | H7: ='[1]1'!I5 -> 8.28 | I7: ='[1]1'!J5 -> 22.06 | J7: ='[1]1'!G5 -> 179 | K7: ='[1]1'!C5 -> №312/2015 г
D8: гор.напиток | E8: ='[1]1'!D6 -> Напиток из замороженной черной смородины | F8: ='[1]1'!E6 -> 180 | G8: ='[1]1'!H6 -> 0.09 | H8: ='[1]1'!I6 -> 0.04 | I8: ='[1]1'!J6 -> 9.64 | J8: ='[1]1'!G6 -> 40 | K8: ='[1]1'!C6 -> ТТК 2021 г
D9: хлеб | E9: ='[2]1'!$D$8 -> Хлебная корзина (хлеб пш., хлеб рж.-пш.) | F9: ='[2]1'!$E$8 -> 40 | G9: ='[2]1'!$H$8 -> 2.52 | H9: ='[2]1'!$I$8 -> 0.36 | I9: ='[2]1'!$J$8 -> 18.84 | J9: ='[2]1'!$G$8 -> 91 | K9: =K10 -> ТТК
D10: фрукты | K10: ='[1]1'!C8 -> ТТК
D11: десерт | E11: ='[1]1'!$D$9 -> Печенье сдобное Шоколадное | F11: ='[1]1'!$E$9 -> 15 | G11: ='[1]1'!$H$9 -> 1.21 | H11: ='[1]1'!$I$9 -> 2.3 | I11: ='[1]1'!$J$9 -> 10.25 | J11: ='[1]1'!$G$9 -> 66
D12: закуска | E12: ='[1]1'!$D$7 -> Салат-бар (Помидоры свежие порциями, огурцы соленые, фасоль конс., сухарики, масло раст.) | F12: ='[1]1'!$E$7 -> 60 | G12: ='[1]1'!$H$7 -> 1.67 | H12: ='[1]1'!$I$7 -> 6.11 | I12: ='[1]1'!$J$7 -> 7.09 | J12: ='[1]1'!$G$7 -> 91 | K12: =K9 -> ТТК
D13: итого | F13: =SUM(F6:F12) -> 540 | G13: =SUM(G6:G12) -> 18.61 | H13: 19.1 | I13: 78.08 | J13: 565 | L13: =SUM(L6:L12) -> 0
A14: =A6 -> 1 | B14: =B6 -> 1 | C14: Обед | D14: закуска
D15: 1 блюдо
D16: 2 блюдо
D17: гарнир
D18: напиток
D19: хлеб бел.
D20: хлеб черн.
D23: итого | F23: =SUM(F14:F22) -> 0 | G23: =SUM(G14:G22) -> 0 | H23: 0 | I23: 0 | J23: 0 | L23: =SUM(L14:L22) -> 0
A24: =A6 -> 1 | B24: =B6 -> 1 | C24: Итого за день: | F24: =F13+F23 -> 540 | G24: =G13+G23 -> 18.61 | H24: 19.1 | I24: 78.08 | J24: 565 | L24: =L13+L23 -> 0
A25: 1 | B25: 2 | C25: Завтрак | D25: гор.блюдо | E25: ='[2]1'!D4 -> Ежики с мясом и рисом в соусе томатном | F25: ='[2]1'!E4 -> 100 | G25: ='[2]1'!H4 -> 4.60 | H25: ='[2]1'!I4 -> 4.00 | I25: ='[2]1'!J4 -> 3.23 | J25: ='[2]1'!G4 -> 49 | K25: ='[2]1'!C4 -> ТТК 2020
E26: ='[2]1'!D5 -> Макаронные изделия отварные | F26: ='[2]1'!E5 -> 150 | G26: ='[2]1'!H5 -> 5.64 | H26: ='[2]1'!I5 -> 4.46 | I26: ='[2]1'!J5 -> 35.94 | J26: ='[2]1'!G5 -> 207 | K26: ='[2]1'!C5 -> №202/2015 г
D27: гор.напиток | E27: ='[2]1'!D6 -> Компот из плодов сушеных (урюк) | F27: ='[2]1'!E6 -> 180 | G27: ='[2]1'!H6 -> 0.72 | H27: ='[2]1'!I6 -> 0.06 | I27: ='[2]1'!J6 -> 16.61 | J27: ='[2]1'!G6 -> 71 | K27: ='[2]1'!C6 -> №348/2015
D28: хлеб | E28: ='[2]1'!$D$8 -> Хлебная корзина (хлеб пш., хлеб рж.-пш.) | F28: ='[2]1'!$E$8 -> 40 | G28: ='[2]1'!$H$8 -> 2.52 | H28: ='[2]1'!$I$8 -> 0.36 | I28: ='[2]1'!$J$8 -> 18.84 | J28: ='[2]1'!$G$8 -> 91 | K28: ='[2]1'!$C$8 -> ТТК
D29: фрукты
D30: закуска | E30: ='[2]1'!$D$7 -> Салат-бар (Морковь свежая порциями, капуста белокач., сыр, сухари, масло раст.) | F30: ='[2]1'!$E$7 -> 60 | G30: ='[2]1'!$H$7 -> 3.91 | H30: ='[2]1'!$I$7 -> 8.74 | I30: ='[2]1'!$J$7 -> 6.6 | J30: ='[2]1'!$G$7 -> 122 | K30: ='[2]1'!$C$7 -> ТТК 2023 г
D31: печенье | E31: ='[2]1'!$D$9 -> Печенье сдобное Вкусное | F31: ='[2]1'!$E$9 -> 30 | G31: ='[2]1'!$H$9 -> 2.1 | H31: ='[2]1'!$I$9 -> 2.1 | I31: ='[2]1'!$J$9 -> 5.1 | J31: ='[2]1'!$G$9 -> 47 | K31: ='[2]1'!$C$9 -> АКТ 2021 г
D32: итого | F32: =SUM(F25:F31) -> 560 | G32: =SUM(G25:G31) -> 19.49 | H32: =SUM(H25:H31) -> 19.72 | I32: =SUM(I25:I31) -> 86.32 | J32: =SUM(J25:J31) -> 587 | L32: 0
A33: =A25 -> 1 | B33: =B25 -> 2 | C33: Обед | D33: закуска
D34: 1 блюдо
D35: 2 блюдо
D36: гарнир
D37: напиток
D38: хлеб бел.
D39: хлеб черн.
D42: итого | F42: =SUM(F33:F41) -> 0 | G42: =SUM(G33:G41) -> 0 | H42: =SUM(H33:H41) -> 0 | I42: =SUM(I33:I41) -> 0 | J42: =SUM(J33:J41) -> 0 | L42: 0
A43: =A25 -> 1 | B43: =B25 -> 2 | C43: Итого за день: | F43: =F32+F42 -> 560 | G43: =G32+G42 -> 19.49 | H43: =H32+H42 -> 19.72 | I43: =I32+I42 -> 86.32 | J43: =J32+J42 -> 587 | L43: 0
A44: 1 | B44: 3 | C44: Завтрак | D44: гор.блюдо | E44: ='[3]1'!D4 -> Котлеты "Аппетитные" | F44: ='[3]1'!E4 -> 90 | G44: ='[3]1'!H4 -> 11.20 | H44: ='[3]1'!I4 -> 4.45 | I44: ='[3]1'!J4 -> 18.50 | J44: ='[3]1'!G4 -> 158.00 | K44: ='[3]1'!C4 -> ТТК 2022 г
E45: ='[3]1'!D5 -> Пюре картофельное | F45: ='[3]1'!E5 -> 150 | G45: ='[3]1'!H5 -> 3.28 | H45: ='[3]1'!I5 -> 7.28 | I45: ='[3]1'!J5 -> 22.00 | J45: ='[3]1'!G5 -> 169.00 | K45: ='[3]1'!C5 -> №312/2015 г
D46: гор.напиток | E46: ='[3]1'!D6 -> Компот из замороженной компотной смеси | F46: ='[3]1'!E6 -> 180 | G46: ='[3]1'!H6 -> 0.12 | H46: ='[3]1'!I6 -> 0.02 | I46: ='[3]1'!J6 -> 10.03 | J46: ='[3]1'!G6 -> 41.00 | K46: ='[3]1'!C6 -> ТТК 2022 г
D47: хлеб | E47: ='[3]1'!$D$8 -> Хлебная корзина (хлеб пш., хлеб рж.-пш.) | F47: ='[3]1'!$E$8 -> 40 | G47: ='[3]1'!$H$8 -> 2.52 | H47: ='[3]1'!$I$8 -> 0.36 | I47: ='[3]1'!$J$8 -> 18.84 | J47: ='[3]1'!$G$8 -> 91 | K47: ='[3]1'!$C$8 -> ТТК
D48: фрукты
D49: закуска | E49: ='[3]1'!$D$7 -> Салат-бар (Огурцы свежая порциями, помидоры, фасоль конс., сухарики, масло раст.) | F49: ='[3]1'!$E$7 -> 60 | G49: ='[3]1'!$H$7 -> 1.62 | H49: ='[3]1'!$I$7 -> 6.1 | I49: ='[3]1'!$J$7 -> 6.92 | J49: ='[3]1'!$G$7 -> 90 | K49: ='[3]1'!$C$7 -> ТТК 2023 г
D51: итого | F51: =SUM(F44:F50) -> 520 | G51: =SUM(G44:G50) -> 18.74 | H51: =SUM(H44:H50) -> 18.21 | I51: =SUM(I44:I50) -> 76.29 | J51: =SUM(J44:J50) -> 549 | L51: 0
A52: =A44 -> 1 | B52: =B44 -> 3 | C52: Обед | D52: закуска
D53: 1 блюдо
D54: 2 блюдо
D55: гарнир
D56: напиток
D57: хлеб бел.
D58: хлеб черн.
D61: итого | F61: =SUM(F52:F60) -> 0 | G61: =SUM(G52:G60) -> 0 | H61: =SUM(H52:H60) -> 0 | I61: =SUM(I52:I60) -> 0 | J61: =SUM(J52:J60) -> 0 | L61: 0
A62: =A44 -> 1 | B62: =B44 -> 3 | C62: Итого за день: | F62: =F51+F61 -> 520 | G62: =G51+G61 -> 18.74 | H62: =H51+H61 -> 18.21 | I62: =I51+I61 -> 76.29 | J62: =J51+J61 -> 549 | L62: 0
A63: 1 | B63: 4 | C63: Завтрак | D63: гор.блюдо | E63: ='[4]1'!D4 -> Плов с куриными грудками | F63: ='[4]1'!E4 -> 200 | G63: ='[4]1'!H4 -> 14.01 | H63: ='[4]1'!I4 -> 12.30 | I63: ='[4]1'!J4 -> 30.20 | J63: ='[4]1'!G4 -> 278 | K63: ='[4]1'!C4 -> ТТК 2021 г
D65: гор.напиток | E65: ='[4]1'!D6 -> Компот из плодов сушеных (урюк) | F65: ='[4]1'!E6 -> 180 | G65: ='[4]1'!H6 -> 0.72 | H65: ='[4]1'!I6 -> 0.06 | I65: ='[4]1'!J6 -> 16.61 | J65: ='[4]1'!G6 -> 71 | K65: ='[4]1'!C6 -> ТТК
D66: хлеб | E66: ='[4]1'!$D$8 -> Хлебная корзина (хлеб пш., хлеб рж.-пш.) | F66: ='[4]1'!$E$8 -> 40 | G66: ='[4]1'!$H$8 -> 2.52 | H66: ='[4]1'!$I$8 -> 0.36 | I66: ='[4]1'!$J$8 -> 18.84 | J66: ='[4]1'!$G$8 -> 91 | K66: ='[4]1'!$C$8 -> ТТК
D67: фрукты | E67: ='[4]1'!$D$9 -> Плодые свежие (яблоко) | F67: ='[4]1'!$E$9 -> 120 | G67: ='[4]1'!$H$9 -> 0.48 | H67: ='[4]1'!$I$9 -> 0.48 | I67: ='[4]1'!$J$9 -> 11.76 | J67: ='[4]1'!$G$9 -> 56 | K67: ='[4]1'!$C$9 -> № 338/2015
D68: закуска | E68: ='[4]1'!$D$7 -> Салат-бар (Помидоры свежая порциями, капуста белокач., зел. горошек конс., сухарики, масло раст.) | F68: ='[4]1'!$E$7 -> 60 | G68: ='[4]1'!$H$7 -> 1.55 | H68: ='[4]1'!$I$7 -> 6.12 | I68: ='[4]1'!$J$7 -> 6.63 | J68: ='[4]1'!$G$7 -> 89 | K68: ='[4]1'!$C$7 -> № 532/2013г, Самара
D70: итого | F70: =SUM(F63:F69) -> 600 | G70: =SUM(G63:G69) -> 19.28 | H70: =SUM(H63:H69) -> 19.32 | I70: =SUM(I63:I69) -> 84.04 | J70: =SUM(J63:J69) -> 585 | L70: 0
A71: =A63 -> 1 | B71: =B63 -> 4 | C71: Обед | D71: закуска
D72: 1 блюдо
D73: 2 блюдо
D74: гарнир
D75: напиток
D76: хлеб бел.
D77: хлеб черн.
D80: итого | F80: =SUM(F71:F79) -> 0 | G80: =SUM(G71:G79) -> 0 | H80: =SUM(H71:H79) -> 0 | I80: =SUM(I71:I79) -> 0 | J80: =SUM(J71:J79) -> 0 | L80: 0
A81: =A63 -> 1 | B81: =B63 -> 4 | C81: Итого за день: | F81: =F70+F80 -> 600 | G81: =G70+G80 -> 19.28 | H81: =H70+H80 -> 19.32 | I81: =I70+I80 -> 84.04 | J81: =J70+J80 -> 585 | L81: 0
A82: 1 | B82: 5 | C82: Завтрак | D82: гор.блюдо | E82: ='[5]1'!D4 -> Котлеты Домашние | F82: ='[5]1'!E4 -> 90 | G82: ='[5]1'!H4 -> 7.1 | H82: ='[5]1'!I4 -> 5.1 | I82: ='[5]1'!J4 -> 10.9 | J82: ='[5]1'!G4 -> 97 | K82: ='[5]1'!C4 -> № 2023 г
E83: ='[5]1'!D5 -> Каша гречневая рассыпчатая | F83: ='[5]1'!E5 -> 150 | G83: ='[5]1'!H5 -> 6.62 | H83: ='[5]1'!I5 -> 5.39 | I83: ='[5]1'!J5 -> 41.87 | J83: ='[5]1'!G5 -> 242 | K83: ='[5]1'!C5 -> №302/2004
D84: гор.напиток | E84: ='[5]1'!D6 -> Напиток из замороженной черной смородины | F84: ='[5]1'!E6 -> 180 | G84: ='[5]1'!H6 -> 0.09 | H84: ='[5]1'!I6 -> 0.04 | I84: ='[5]1'!J6 -> 9.64 | J84: ='[5]1'!G6 -> 40 | K84: ='[5]1'!C6 -> ТТК 2022 г
D85: хлеб | E85: ='[5]1'!$D$8 -> Хлебная корзина (хлеб пш., хлеб рж.-пш.) | F85: ='[5]1'!$E$8 -> 40 | G85: ='[5]1'!$H$8 -> 2.52 | H85: ='[5]1'!$I$8 -> 0.36 | I85: ='[5]1'!$J$8 -> 18.84 | J85: ='[5]1'!$G$8 -> 91 | K85: ='[5]1'!$C$8 -> ТТК
D86: фрукты
D87: закуска | E87: ='[5]1'!$D$7 -> Салат-бар (Свекла отвар.тертая, морковь свежая порциями, сыр, сухарики, масло раст. | F87: ='[5]1'!$E$7 -> 60 | G87: ='[5]1'!$H$7 -> 1.56 | H87: ='[5]1'!$I$7 -> 8.72 | I87: ='[5]1'!$J$7 -> 5.73 | J87: ='[5]1'!$G$7 -> 117 | K87: ='[5]1'!$C$7 -> № 532/2013г, Самара
D89: итого | F89: =SUM(F82:F88) -> 520 | G89: =SUM(G82:G88) -> 17.89 | H89: =SUM(H82:H88) -> 19.61 | I89: =SUM(I82:I88) -> 86.98 | J89: =SUM(J82:J88) -> 587 | L89: 0
A90: =A82 -> 1 | B90: =B82 -> 5 | C90: Обед | D90: закуска
D91: 1 блюдо
D92: 2 блюдо
D93: гарнир
D94: напиток
D95: хлеб бел.
D96: хлеб черн.
D99: итого | F99: =SUM(F90:F98) -> 0 | G99: =SUM(G90:G98) -> 0 | H99: =SUM(H90:H98) -> 0 | I99: =SUM(I90:I98) -> 0 | J99: =SUM(J90:J98) -> 0 | L99: 0
A100: =A82 -> 1 | B100: =B82 -> 5 | C100: Итого за день: | F100: =F89+F99 -> 520 | G100: =G89+G99 -> 17.89 | H100: =H89+H99 -> 19.61 | I100: =I89+I99 -> 86.98 | J100: =J89+J99 -> 587 | L100: 0
A101: 2 | B101: 1 | C101: Завтрак | D101: гор.блюдо | E101: ='[6]1'!D4 -> Биточки рыбные из фарша минтая | F101: ='[6]1'!E4 -> 90 | G101: ='[6]1'!H4 -> 9.8 | H101: ='[6]1'!I4 -> 2.01 | I101: ='[6]1'!J4 -> 10.2 | J101: ='[6]1'!G4 -> 98 | K101: ='[6]1'!C4 -> ТТК 2021 г
E102: ='[6]1'!D5 -> Пюре картофельное | F102: ='[6]1'!E5 -> 150 | G102: ='[6]1'!H5 -> 3.28 | H102: ='[6]1'!I5 -> 7.28 | I102: ='[6]1'!J5 -> 22 | J102: ='[6]1'!G5 -> 169 | K102: ='[6]1'!C5 -> №312/2015 г
D103: гор.напиток | E103: ='[6]1'!D6 -> Компот из плодов сушеных (урюк) | F103: ='[6]1'!E6 -> 180 | G103: ='[6]1'!H6 -> 0.72 | H103: ='[6]1'!I6 -> 0.06 | I103: ='[6]1'!J6 -> 16.61 | J103: ='[6]1'!G6 -> 71 | K103: ='[6]1'!C6 -> ТТК 2021 г
D104: хлеб | E104: ='[6]1'!$D$8 -> Хлебная корзина (хлеб пш., хлеб рж.-пш.) | F104: ='[6]1'!$E$8 -> 40 | G104: ='[6]1'!$H$8 -> 2.52 | H104: ='[6]1'!$I$8 -> 0.36 | I104: ='[6]1'!$J$8 -> 18.84 | J104: 91 | K104: ='[6]1'!$C$8 -> ТТК
D105: фрукты | E105: ='[6]1'!$D$9 -> Десерт фруктовый (яблоки) | F105: ='[6]1'!$E$9 -> 80 | G105: ='[6]1'!$H$9 -> 0.32 | H105: ='[6]1'!$I$9 -> 0.32 | I105: ='[6]1'!$J$9 -> 7.84 | J105: ='[6]1'!$G$9 -> 38 | K105: ='[6]1'!$C$9 -> №532/2013 г
D106: закуска | E106: ='[6]1'!$D$7 -> Салат-бар (Помидоры свежие порциями, огурцы соленые, фасоль конс., сухарики, масло раст.) | F106: ='[6]1'!$E$7 -> 60 | G106: ='[6]1'!$H$7 -> 1.67 | H106: ='[6]1'!$I$7 -> 6.11 | I106: ='[6]1'!$J$7 -> 7.09 | J106: ='[6]1'!$G$7 -> 91 | K106: ='[6]1'!$C$7 -> № 532/2013г, Самара
D108: итого | F108: =SUM(F101:F107) -> 600 | G108: =SUM(G101:G107) -> 18.31 | H108: 16.14 | I108: 82.58 | J108: 558 | L108: =SUM(L101:L107) -> 0
A109: =A101 -> 2 | B109: =B101 -> 1 | C109: Обед | D109: закуска
D110: 1 блюдо
D111: 2 блюдо
D112: гарнир
D113: напиток
D114: хлеб бел.
D115: хлеб черн.
D118: итого | F118: =SUM(F109:F117) -> 0 | G118: =SUM(G109:G117) -> 0 | H118: 0 | I118: 0 | J118: 0 | L118: =SUM(L109:L117) -> 0
A119: =A101 -> 2 | B119: =B101 -> 1 | C119: Итого за день: | F119: =F108+F118 -> 600 | G119: =G108+G118 -> 18.31 | H119: =H108+H118 -> 16.14 | I119: =I108+I118 -> 82.58 | J119: =J108+J118 -> 558 | L119: 0
A120: 2 | B120: 2 | C120: Завтрак | D120: гор.блюдо | E120: ='[7]1'!D4 -> Котлеты "Столичные" | F120: ='[7]1'!E4 -> 90 | G120: ='[7]1'!H4 -> 8.10 | H120: ='[7]1'!I4 -> 4.05 | I120: ='[7]1'!J4 -> 3.40 | J120: ='[7]1'!G4 -> 83 | K120: ='[7]1'!C4 -> ТТК июль 2023 г
E121: ='[7]1'!D5 -> Каша гречневая рассыпчатая | F121: ='[7]1'!E5 -> 155 | G121: ='[7]1'!H5 -> 6.66 | H121: ='[7]1'!I5 -> 9.02 | I121: ='[7]1'!J5 -> 41.91 | J121: ='[7]1'!G5 -> 276 | K121: ='[7]1'!C5 -> № 302/2015, Дели
D122: гор.напиток | E122: ='[7]1'!D6 -> Напиток из замороженной черной смородины | F122: ='[7]1'!E6 -> 180 | G122: ='[7]1'!H6 -> 0.09 | H122: ='[7]1'!I6 -> 0.04 | I122: ='[7]1'!J6 -> 9.64 | J122: ='[7]1'!G6 -> 40 | K122: ='[7]1'!C6 -> ТТК
D123: хлеб | E123: ='[7]1'!$D$8 -> Хлебная корзина (хлеб пш., хлеб рж.-пш.) | F123: ='[7]1'!$E$8 -> 40 | G123: ='[7]1'!$H$8 -> 2.52 | H123: ='[7]1'!$I$8 -> 0.36 | I123: ='[7]1'!$J$8 -> 18.84 | J123: ='[7]1'!$G$8 -> 91 | K123: ='[7]1'!$C$8 -> ТТК
D124: фрукты
D125: закуска | E125: ='[7]1'!$D$7 -> Салат-бар (Морковь свежая порциями, капуста белокач., кукуруза конс., сухарики, масло раст.) | F125: ='[7]1'!$E$7 -> 60 | G125: ='[7]1'!$H$7 -> 1.56 | H125: ='[7]1'!$I$7 -> 6.16 | I125: ='[7]1'!$J$7 -> 7.78 | J125: ='[7]1'!$G$7 -> 94 | K125: ='[7]1'!$C$7 -> ТТК 2023 г
D127: итого | F127: =SUM(F120:F126) -> 525 | G127: =SUM(G120:G126) -> 18.93 | H127: 19.63 | I127: 81.57 | J127: 583.5 | L127: =SUM(L120:L126) -> 0
A128: =A120 -> 2 | B128: =B120 -> 2 | C128: Обед | D128: закуска
D129: 1 блюдо
D130: 2 блюдо
D131: гарнир
D132: напиток
D133: хлеб бел.
D134: хлеб черн.
D137: итого | F137: =SUM(F128:F136) -> 0 | G137: =SUM(G128:G136) -> 0 | H137: 0 | I137: 0 | J137: 0 | L137: =SUM(L128:L136) -> 0
A138: =A120 -> 2 | B138: =B120 -> 2 | C138: Итого за день: | F138: =F127+F137 -> 525 | G138: =G127+G137 -> 18.93 | H138: =H127+H137 -> 19.63 | I138: =I127+I137 -> 81.57 | J138: =J127+J137 -> 583.5 | L138: 0
A139: 2 | B139: 3 | C139: Завтрак | D139: гор.блюдо | E139: ='[8]1'!D4 -> Тефтели из говядины в соусе томатном | F139: ='[8]1'!E4 -> 90 | G139: ='[8]1'!H4 -> 8.60 | H139: ='[8]1'!I4 -> 2.80 | I139: ='[8]1'!J4 -> 10.90 | J139: ='[8]1'!G4 -> 103.00 | K139: ='[8]1'!C4 -> ТТК от 19.07.2023 г
E140: ='[8]1'!D5 -> Картофель запечённый | F140: ='[8]1'!E5 -> 160 | G140: ='[8]1'!H5 -> 4.64 | H140: ='[8]1'!I5 -> 7.71 | I140: ='[8]1'!J5 -> 37.80 | J140: ='[8]1'!G5 -> 239.00 | K140: ='[8]1'!C5 -> ТТК
D141: гор.напиток | E141: ='[8]1'!D6 -> Напиток из шиповника | F141: ='[8]1'!E6 -> 180 | G141: ='[8]1'!H6 -> 0.01 | H141: ='[8]1'!I6 -> 0.00 | I141: ='[8]1'!J6 -> 9.16 | J141: ='[8]1'!G6 -> 37.00 | K141: ='[8]1'!C6 -> ТТК 2021 г
D142: хлеб | E142: ='[8]1'!$D$8 -> Хлебная корзина (хлеб пш., хлеб рж.-пш.) | F142: ='[8]1'!$E$8 -> 40 | G142: ='[8]1'!$H$8 -> 2.52 | H142: ='[8]1'!$I$8 -> 0.36 | I142: ='[8]1'!$J$8 -> 18.84 | J142: ='[8]1'!$G$8 -> 91 | K142: ='[8]1'!$C$8 -> ТТК
D143: фрукты
D144: закуска | E144: ='[8]1'!$D$7 -> Салат-бар (Огурцы свежая порциями, помидоры, фасоль конс., сухарики, масло раст.) | F144: ='[8]1'!$E$7 -> 60 | G144: ='[8]1'!$H$7 -> 1.62 | H144: ='[8]1'!$I$7 -> 6.1 | I144: ='[8]1'!$J$7 -> 6.92 | J144: ='[8]1'!$G$7 -> 90 | K144: ='[8]1'!$C$7 -> № 532/2013г, Самара
D146: итого | F146: =SUM(F139:F145) -> 530 | G146: =SUM(G139:G145) -> 17.39 | H146: 16.97 | I146: 83.62 | J146: 560 | L146: =SUM(L139:L145) -> 0
A147: =A139 -> 2 | B147: =B139 -> 3 | C147: Обед | D147: закуска
D148: 1 блюдо
D149: 2 блюдо
D150: гарнир
D151: напиток
D152: хлеб бел.
D153: хлеб черн.
D156: итого | F156: =SUM(F147:F155) -> 0 | G156: =SUM(G147:G155) -> 0 | H156: 0 | I156: 0 | J156: 0 | L156: =SUM(L147:L155) -> 0
A157: =A139 -> 2 | B157: =B139 -> 3 | C157: Итого за день: | F157: =F146+F156 -> 530 | G157: =G146+G156 -> 17.39 | H157: =H146+H156 -> 16.97 | I157: =I146+I156 -> 83.62 | J157: =J146+J156 -> 560 | L157: 0
A158: 2 | B158: 4 | C158: Завтрак | D158: гор.блюдо | E158: ='[9]1'!D4 -> Гуляш из филе грудок индейки | F158: ='[9]1'!E4 -> 90 | G158: ='[9]1'!H4 -> 11.90 | H158: ='[9]1'!I4 -> 8.20 | I158: ='[9]1'!J4 -> 11.85 | J158: ='[9]1'!G4 -> 152 | K158: ='[9]1'!C4 -> ТТК 2022 г
E159: ='[9]1'!D5 -> Каша рисовая вязкая | F159: ='[9]1'!E5 -> 150 | G159: ='[9]1'!H5 -> 2.30 | H159: ='[9]1'!I5 -> 4.13 | I159: ='[9]1'!J5 -> 23.94 | J159: ='[9]1'!G5 -> 142 | K159: ='[9]1'!C5 -> ТТК 2021 г
D160: гор.напиток | E160: ='[9]1'!D6 -> Компот из плодов или ягод сушеных | F160: ='[9]1'!E6 -> 180 | G160: ='[9]1'!H6 -> 0.72 | H160: ='[9]1'!I6 -> 0.06 | I160: ='[9]1'!J6 -> 16.61 | J160: ='[9]1'!G6 -> 71 | K160: ='[9]1'!C6 -> ТТК
D161: хлеб | E161: ='[9]1'!D8 -> Хлебная корзина (хлеб пш., хлеб рж.-пш.) | F161: ='[9]1'!E8 -> 40 | G161: ='[9]1'!H8 -> 2.52 | H161: ='[9]1'!I8 -> 0.36 | I161: ='[9]1'!J8 -> 18.84 | J161: ='[9]1'!G8 -> 91 | K161: ='[9]1'!C8 -> ТТК
D162: фрукты | E162: ='[9]1'!D9 -> Десерт фруктовый | F162: ='[9]1'!E9 -> 90 | G162: ='[9]1'!H9 -> 0.36 | H162: ='[9]1'!I9 -> 0.36 | I162: ='[9]1'!J9 -> 8.82 | J162: ='[9]1'!G9 -> 42 | K162: ='[9]1'!C9 -> № 532/2013г, Самара
D163: закуска | E163: ='[9]1'!$D$7 -> Салат-бар (Помидоры свежая порциями, капуста белокач., зел. горошек конс., сухарики, масло раст.) | F163: ='[9]1'!$E$7 -> 60 | G163: ='[9]1'!$H$7 -> 1.55 | H163: ='[9]1'!$I$7 -> 6.12 | I163: ='[9]1'!$J$7 -> 6.63 | J163: ='[9]1'!$G$7 -> 89 | K163: ='[9]1'!$C$7 -> № 532/2013г, Самара
D165: итого | F165: =SUM(F158:F164) -> 610 | G165: =SUM(G158:G164) -> 19.35 | H165: 19.23 | I165: 86.69 | J165: 587 | L165: =SUM(L158:L164) -> 0
A166: =A158 -> 2 | B166: =B158 -> 4 | C166: Обед | D166: закуска
D167: 1 блюдо
D168: 2 блюдо
D169: гарнир
D170: напиток
D171: хлеб бел.
D172: хлеб черн.
D175: итого | F175: =SUM(F166:F174) -> 0 | G175: =SUM(G166:G174) -> 0 | H175: 0 | I175: 0 | J175: 0 | L175: =SUM(L166:L174) -> 0
A176: =A158 -> 2 | B176: =B158 -> 4 | C176: Итого за день: | F176: =F165+F175 -> 610 | G176: =G165+G175 -> 19.35 | H176: =H165+H175 -> 19.23 | I176: =I165+I175 -> 86.69 | J176: =J165+J175 -> 587 | L176: 0
A177: 2 | B177: 5 | C177: Завтрак | D177: гор.блюдо | E177: ='[10]1'!D4 -> Сосиски отварные с соусом "Переменка" | F177: ='[10]1'!E4 -> 110 | G177: ='[10]1'!H4 -> 10.1 | H177: ='[10]1'!I4 -> 4.8 | I177: ='[10]1'!J4 -> 11.75 | J177: ='[10]1'!G4 -> 126 | K177: ='[10]1'!C4 -> №243/2015
E178: ='[10]1'!D5 -> Макаронные изделия отварные | F178: ='[10]1'!E5 -> 150 | G178: ='[10]1'!H5 -> 5.64 | H178: ='[10]1'!I5 -> 4.46 | I178: ='[10]1'!J5 -> 35.94 | J178: ='[10]1'!G5 -> 210 | K178: ='[10]1'!C5 -> №202/2015
D179: гор.напиток | E179: ='[10]1'!D6 -> Компот из замор. Вишни | F179: ='[10]1'!E6 -> 180 | G179: ='[10]1'!H6 -> 0.1 | H179: ='[10]1'!I6 -> 0.03 | I179: ='[10]1'!J6 -> 10.41 | J179: ='[10]1'!G6 -> 43 | K179: ='[10]1'!C6 -> ТТК 2021 г
D180: хлеб | E180: ='[10]1'!$D$7 -> Хлебная корзина (хлеб пш., хлеб рж.-пш.) | F180: ='[10]1'!$E$7 -> 40 | G180: ='[10]1'!$H$7 -> 2.52 | H180: ='[10]1'!$I$7 -> 0.36 | I180: ='[10]1'!$J$7 -> 18.84 | J180: ='[10]1'!$G$7 -> 91 | K180: ='[10]1'!$C$7 -> ТТК
D181: фрукты
D182: закуска | E182: ='[10]1'!$D$8 -> Салат-бар (Свекла отвар.тертая, морковь свежая порциями, сыр, сухарики, масло раст. | F182: ='[10]1'!$E$8 -> 60 | G182: ='[10]1'!$H$8 -> 1.56 | H182: ='[10]1'!$I$8 -> 8.72 | I182: ='[10]1'!$J$8 -> 5.73 | J182: ='[10]1'!$G$8 -> 117 | K182: ='[10]1'!$C$8 -> № 532/2013г, Самара
D184: итого | F184: =SUM(F177:F183) -> 540 | G184: =SUM(G177:G183) -> 19.92 | H184: 18.37 | I184: 82.67 | J184: 587 | L184: =SUM(L177:L183) -> 0
A185: =A177 -> 2 | B185: =B177 -> 5 | C185: Обед | D185: закуска
D186: 1 блюдо
D187: 2 блюдо
D188: гарнир
D189: напиток
D190: хлеб бел.
D191: хлеб черн.
D194: итого | F194: =SUM(F185:F193) -> 0 | G194: =SUM(G185:G193) -> 0 | H194: 0 | I194: 0 | J194: 0 | L194: =SUM(L185:L193) -> 0
A195: =A177 -> 2 | B195: =B177 -> 5 | C195: Итого за день: | F195: =F184+F194 -> 540 | G195: =G184+G194 -> 19.92 | H195: =H184+H194 -> 18.37 | I195: =I184+I194 -> 82.67 | J195: =J184+J194 -> 587 | L195: 0
C196: Среднее значение за период: | F196: =(F24+F43+F62+F81+F100+F119+F138+F157+F176+F195)/(IF(F24=0,0,1)+IF(F43=0,0,1)+IF(F62=0,0,1)+IF(F81=0,0,1)+IF(F100=0,0,1)+IF(F119=0,0,1)+IF(F138=0,0,1)+IF(F157=0,0,1)+IF(F176=0,0,1)+IF(F195=0,0,1)) -> 554.5 | G196: =(G24+G43+G62+G81+G100+G119+G138+G157+G176+G195)/(IF(G24=0,0,1)+IF(G43=0,0,1)+IF(G62=0,0,1)+IF(G81=0,0,1)+IF(G100=0,0,1)+IF(G119=0,0,1)+IF(G138=0,0,1)+IF(G157=0,0,1)+IF(G176=0,0,1)+IF(G195=0,0,1)) -> 18.791 | H196: 18.63 | I196: 82.884 | J196: 574.85 | L196: =(L24+L43+L62+L81+L100+L119+L138+L157+L176+L195)/(IF(L24=0,0,1)+IF(L43=0,0,1)+IF(L62=0,0,1)+IF(L81=0,0,1)+IF(L100=0,0,1)+IF(L119=0,0,1)+IF(L138=0,0,1)+IF(L157=0,0,1)+IF(L176=0,0,1)+IF(L195=0,0,1)) -> 
